,Portfolio,Expense Area,Cost Centre,Expense Type,Account Code,Amount,Supplier Name,SupplierId,Pay Date,Transaction No.
INSERTED DETAIL,Resources & Corporate Governance ,Toilet Cleaning,WBC01,Materials,0303,104.57,Arco Limited,100015,27/02/2014,10198201
INSERTED DETAIL,Resources & Corporate Governance ,Street Cleansing,WSC00,Materials,0303,16.52,Arco Limited,100015,27/02/2014,10198201
INSERTED DETAIL,Resources & Corporate Governance ,Domestic Waste Collection,WWC00,Materials,0303,289.50,Arco Limited,100015,27/02/2014,10198201
INSERTED DETAIL,Resources & Corporate Governance ,Toilet Cleaning,WBC01,Personal Protective Clothing,0340,17.00,Arco Limited,100015,27/02/2014,10198201
INSERTED DETAIL,Resources & Corporate Governance ,Grounds Maintenance,WGM00,Personal Protective Clothing,0340,178.42,Arco Limited,100015,27/02/2014,10198201
INSERTED DETAIL,Resources & Corporate Governance ,Highways,WHG00,Personal Protective Clothing,0340,25.49,Arco Limited,100015,27/02/2014,10198201
INSERTED DETAIL,Resources & Corporate Governance ,Street Cleansing,WSC00,Personal Protective Clothing,0340,203.91,Arco Limited,100015,27/02/2014,10198201
INSERTED DETAIL,Resources & Corporate Governance ,Garage Internal,WVR01,Personal Protective Clothing,0340,33.99,Arco Limited,100015,27/02/2014,10198201
INSERTED DETAIL,Resources & Corporate Governance ,Domestic Waste Collection,WWC00,Personal Protective Clothing,0340,356.80,Arco Limited,100015,27/02/2014,10198201
INSERTED DETAIL,Resources & Corporate Governance ,Trade Waste Collection,WWC01,Personal Protective Clothing,0340,33.99,Arco Limited,100015,27/02/2014,10198201
INSERTED DETAIL,Resources & Corporate Governance ,Street Cleansing,WSC00,Vehicle Repair and Maintenance,0200,5.00,Arrow Engineering Supply Co Ltd,100016,06/02/2014,10197388
INSERTED DETAIL,Resources & Corporate Governance ,Grounds Maintenance,WGM00,Tools,0304,307.34,Arrow Engineering Supply Co Ltd,100016,06/02/2014,10197388
INSERTED DETAIL,Resources & Corporate Governance ,Garage Internal,WVR01,Tools,0304,160.00,Arrow Engineering Supply Co Ltd,100016,06/02/2014,10197388
INSERTED DETAIL,Resources & Corporate Governance ,Domestic Waste Collection,WWC00,Tools,0304,38.64,Arrow Engineering Supply Co Ltd,100016,06/02/2014,10197388
INSERTED DETAIL,Resources & Corporate Governance ,Garage Internal,WVR01,Personal Protective Clothing,0340,30.00,Arrow Engineering Supply Co Ltd,100016,06/02/2014,10197388
INSERTED DETAIL,Housing Revenue Account ,Unplanned Maintenance and Repair,UMR00,R&M External Contractors,0100,1556.81,AWM Electrical Contractors Ltd,100051,06/02/2014,10197341
INSERTED DETAIL,Sustainable Inclusive Communities,Woodside Park,TVR00,R&M External Contractors,0100,68.12,AWM Electrical Contractors Ltd,100051,06/02/2014,10197342
INSERTED DETAIL,Housing Revenue Account ,Unplanned Maintenance and Repair,UMR00,R&M External Contractors,0100,1582.33,AWM Electrical Contractors Ltd,100051,06/02/2014,10197342
INSERTED DETAIL,Housing Revenue Account ,Dickinson Court AP,AGP03,Maintenance of Equipment,0301,45.00,AWM Electrical Contractors Ltd,100051,06/02/2014,10197342
INSERTED DETAIL,Housing Revenue Account ,Duffy Place AP,AGP04,Maintenance of Equipment,0301,32.50,AWM Electrical Contractors Ltd,100051,06/02/2014,10197342
INSERTED DETAIL,Capital Program ,Rewiring,HCE20,Capital Contract Payments,5000,3226.00,AWM Electrical Contractors Ltd,100051,06/02/2014,10197342
INSERTED DETAIL,Housing Revenue Account ,Repairs and Maintenance - Void works,UMR09,R&M External Contractors,0100,765.77,AWM Electrical Contractors Ltd,100051,06/02/2014,10197343
INSERTED DETAIL,Housing Revenue Account ,Repairs and Maintenance - Void works,UMR09,R&M External Contractors,0100,1730.32,AWM Electrical Contractors Ltd,100051,06/02/2014,10197344
INSERTED DETAIL,Housing Revenue Account ,Repairs and Maintenance - Void works,UMR09,R&M External Contractors,0100,1113.74,AWM Electrical Contractors Ltd,100051,06/02/2014,10197345
INSERTED DETAIL,Housing Revenue Account ,Unplanned Maintenance and Repair,UMR00,R&M External Contractors,0100,1341.00,AWM Electrical Contractors Ltd,100051,06/02/2014,10197346
INSERTED DETAIL,Housing Revenue Account ,Unplanned Maintenance and Repair,UMR00,R&M External Contractors,0100,2385.82,AWM Electrical Contractors Ltd,100051,06/02/2014,10197417
INSERTED DETAIL,Housing Revenue Account ,Alfred Green Close AP,AGP01,Maintenance of Equipment,0301,55.00,AWM Electrical Contractors Ltd,100051,06/02/2014,10197417
INSERTED DETAIL,Housing Revenue Account ,Mercer Court AP,AGP09,Maintenance of Equipment,0301,52.50,AWM Electrical Contractors Ltd,100051,06/02/2014,10197417
INSERTED DETAIL,Housing Revenue Account ,Pettiver Crescent I AP,AGP10,Maintenance of Equipment,0301,47.50,AWM Electrical Contractors Ltd,100051,06/02/2014,10197417
INSERTED DETAIL,Housing Revenue Account ,Robotham Close AP,AGP11,Maintenance of Equipment,0301,97.50,AWM Electrical Contractors Ltd,100051,06/02/2014,10197417
INSERTED DETAIL,Housing Revenue Account ,Lesley Souter House AP,AGP16,Maintenance of Equipment,0301,70.00,AWM Electrical Contractors Ltd,100051,06/02/2014,10197417
INSERTED DETAIL,Housing Revenue Account ,Albert Square AP,AGP20,Maintenance of Equipment,0301,140.00,AWM Electrical Contractors Ltd,100051,06/02/2014,10197417
INSERTED DETAIL,Housing Revenue Account ,Edmondson Close Dunchurch AP,AGP44,Maintenance of Equipment,0301,32.50,AWM Electrical Contractors Ltd,100051,06/02/2014,10197417
INSERTED DETAIL,Capital Program ,Fire Risk Prevention Works,HCE18,Capital Contract Payments,5000,586.34,AWM Electrical Contractors Ltd,100051,06/02/2014,10197417
INSERTED DETAIL,Housing Revenue Account ,Unplanned Maintenance and Repair,UMR00,R&M External Contractors,0100,1403.28,AWM Electrical Contractors Ltd,100051,06/02/2014,10197418
INSERTED DETAIL,Housing Revenue Account ,Repairs and Maintenance - Void works,UMR09,R&M External Contractors,0100,631.24,AWM Electrical Contractors Ltd,100051,20/02/2014,10197746
INSERTED DETAIL,Housing Revenue Account ,Unplanned Maintenance and Repair,UMR00,R&M External Contractors,0100,536.74,AWM Electrical Contractors Ltd,100051,20/02/2014,10197747
INSERTED DETAIL,Housing Revenue Account ,Repairs and Maintenance - Void works,UMR09,R&M External Contractors,0100,140.08,AWM Electrical Contractors Ltd,100051,20/02/2014,10197747
INSERTED DETAIL,Housing Revenue Account ,Repairs and Maintenance - Void works,UMR09,R&M External Contractors,0100,1021.36,AWM Electrical Contractors Ltd,100051,20/02/2014,10197869
INSERTED DETAIL,Housing Revenue Account ,Unplanned Maintenance and Repair,UMR00,R&M External Contractors,0100,450.58,AWM Electrical Contractors Ltd,100051,20/02/2014,10197870
INSERTED DETAIL,Housing Revenue Account ,Repairs and Maintenance - Void works,UMR09,R&M External Contractors,0100,828.98,AWM Electrical Contractors Ltd,100051,20/02/2014,10197870
INSERTED DETAIL,Housing Revenue Account ,Unplanned Maintenance and Repair,UMR00,R&M External Contractors,0100,3916.98,AWM Electrical Contractors Ltd,100051,13/02/2014,10197883
INSERTED DETAIL,Housing Revenue Account ,Unplanned Maintenance and Repair,UMR00,R&M External Contractors,0100,1085.89,AWM Electrical Contractors Ltd,100051,13/02/2014,10197884
INSERTED DETAIL,Housing Revenue Account ,Repairs and Maintenance - Void works,UMR09,R&M External Contractors,0100,1976.47,AWM Electrical Contractors Ltd,100051,27/02/2014,10198056
INSERTED DETAIL,Housing Revenue Account ,Repairs and Maintenance - Void works,UMR09,R&M External Contractors,0100,587.52,AWM Electrical Contractors Ltd,100051,27/02/2014,10198057
INSERTED DETAIL,Housing Revenue Account ,Unplanned Maintenance and Repair,UMR00,R&M External Contractors,0100,465.59,AWM Electrical Contractors Ltd,100051,27/02/2014,10198058
INSERTED DETAIL,Housing Revenue Account ,Repairs and Maintenance - Void works,UMR09,R&M External Contractors,0100,30.12,AWM Electrical Contractors Ltd,100051,27/02/2014,10198058
INSERTED DETAIL,Housing Revenue Account ,Unplanned Maintenance and Repair,UMR00,R&M External Contractors,0100,550.93,AWM Electrical Contractors Ltd,100051,27/02/2014,10198059
INSERTED DETAIL,Housing Revenue Account ,Repairs and Maintenance - Void works,UMR09,R&M External Contractors,0100,92.63,AWM Electrical Contractors Ltd,100051,27/02/2014,10198059
INSERTED DETAIL,Capital Program ,Rewiring,HCE20,Capital Contract Payments,5000,1613.00,AWM Electrical Contractors Ltd,100051,27/02/2014,10198059
INSERTED DETAIL,Housing Revenue Account ,Unplanned Maintenance and Repair,UMR00,R&M External Contractors,0100,1384.19,AWM Electrical Contractors Ltd,100051,20/02/2014,10198159
INSERTED DETAIL,Housing Revenue Account ,Unplanned Maintenance and Repair,UMR00,R&M External Contractors,0100,459.42,AWM Electrical Contractors Ltd,100051,20/02/2014,10198160
INSERTED DETAIL,Housing Revenue Account ,Unplanned Maintenance and Repair,UMR00,R&M External Contractors,0100,45.97,AWM Electrical Contractors Ltd,100051,27/02/2014,10198254
INSERTED DETAIL,Housing Revenue Account ,Stretton Court AP,AGP13,New Equipment,0300,520.95,AWM Electrical Contractors Ltd,100051,27/02/2014,10198254
INSERTED DETAIL,Housing Revenue Account ,Unplanned Maintenance and Repair,UMR00,R&M External Contractors,0100,1572.66,AWM Electrical Contractors Ltd,100051,27/02/2014,10198255
INSERTED DETAIL,Resources & Corporate Governance,Corporate Property R&M,CPA01,R&M External Contractors,0100,3821.82,Adt Fire & Security plc,100070,27/02/2014,10198146
INSERTED DETAIL,Capital Program ,Kitchen Modifications,HIK10,Capital Contract Payments,5000,11489.30,A C E Carpentry & Joinery Contractors Ltd,100085,13/02/2014,10197376
INSERTED DETAIL,Capital Program ,Kitchen Modifications,HIK10,Capital Contract Payments,5000,11489.30,A C E Carpentry & Joinery Contractors Ltd,100085,13/02/2014,10197599
INSERTED DETAIL,Capital Program ,Kitchen Modifications,HIK10,Capital Contract Payments,5000,4595.72,A C E Carpentry & Joinery Contractors Ltd,100085,20/02/2014,10197892
INSERTED DETAIL,Housing Revenue Account ,Unplanned Maintenance and Repair,UMR00,R&M External Contractors,0100,656.00,A C E Carpentry & Joinery Contractors Ltd,100085,20/02/2014,10198011
INSERTED DETAIL,Capital Program ,Kitchen Modifications,HIK10,Capital Contract Payments,5000,1542.00,A C E Carpentry & Joinery Contractors Ltd,100085,20/02/2014,10198011
INSERTED DETAIL,Capital Program ,Kitchen Modifications,HIK10,Capital Contract Payments,5000,3554.00,A C E Carpentry & Joinery Contractors Ltd,100085,20/02/2014,10198163
INSERTED DETAIL,Housing Revenue Account ,Unplanned Maintenance and Repair,UMR00,R&M External Contractors,0100,1080.00,A C E Carpentry & Joinery Contractors Ltd,100085,27/02/2014,10198257
INSERTED DETAIL,Resources & Corporate Governance ,Council Tax and NNDR Collection,CTX01,External Contractor & Operator,0742,256.90,Bristow & Sutor,100159,20/02/2014,10198082
INSERTED DETAIL,Resources & Corporate Governance ,Grounds Maintenance,WGM00,Materials,0303,676.50,Burrow Hill Ltd,100167,06/02/2014,10197264
INSERTED DETAIL,Capital Program ,Private Sector Renovation Loans,REN00,Capital Contract Payments,5000,1076.40,D T Wall (Roofing) Ltd,100182,20/02/2014,10197736
INSERTED DETAIL,Economy Development & Culture,General Highways Services,HIG00,External Contractor & Operator,0742,1041.04,Barcham Trees,100195,27/02/2014,10197063
INSERTED DETAIL,Housing Revenue Account ,Unplanned Maintenance and Repair,UMR00,R&M External Contractors,0100,520.48,Barron McCann Ltd,100248,13/02/2014,10197882
INSERTED DETAIL,Housing Revenue Account ,Control Centre CCTV,CCE01,Maintenance of Equipment,0301,1828.75,Barron McCann Ltd,100248,20/02/2014,10197902
INSERTED DETAIL,Resources & Corporate Governance,Corporate Property R&M,CPA01,R&M External Contractors,0100,493.46,Chillaire Service & Maintenance Ltd,100305,20/02/2014,10198013
INSERTED DETAIL,Resources & Corporate Governance,Corporate Property R&M,CPA01,R&M External Contractors,0100,556.00,Chillaire Service & Maintenance Ltd,100305,20/02/2014,10198015
INSERTED DETAIL,Resources & Corporate Governance ,General Administration,WAD00,Hardware Purchase,0375,516.00,Stone Computers,100390,06/02/2014,10197307
INSERTED DETAIL,Resources & Corporate Governance ,IT Procurement,CMP00,IT Capital Expenditure,5025,647.00,Stone Computers,100390,13/02/2014,10197727
INSERTED DETAIL,Capital Program ,Crematorium Project,BUR04,IT Capital Expenditure,5025,537.00,Stone Computers,100390,27/02/2014,10198206
INSERTED DETAIL,Capital Program ,Crematorium Project,BUR04,IT Capital Expenditure,5025,3096.00,Stone Computers,100390,27/02/2014,10198481
INSERTED DETAIL,Capital Program ,Crematorium Project,BUR04,IT Capital Expenditure,5025,1200.00,Capita Business Services Ltd,100403,06/02/2014,10197339
INSERTED DETAIL,Economy Development & Culture,Economic Development General,ECD00,Development Activities,0450,600.00,Coventry & Warwickshire Chamber Of Commerce,100412,27/02/2014,10198262
INSERTED DETAIL,Economy Development & Culture,Art Gallery and Museum,AGM00,Other Miscellaneous Expenses,0444,2000.00,Contemporary Art Society,100422,27/02/2014,10198091
INSERTED DETAIL,Resources & Corporate Governance,Corporate Property R&M,CPA01,R&M External Contractors,0100,613.16,Contract Fire Systems Ltd,100425,13/02/2014,10197605
INSERTED DETAIL,Resources & Corporate Governance,Corporate Property R&M,CPA01,R&M External Contractors,0100,492.01,Contract Fire Systems Ltd,100425,20/02/2014,10198016
INSERTED DETAIL,Sustainable Environment ,Clinical Waste,REF04,External Contractor & Operator,0742,517.14,OCS Group UK Ltd t/a Cannon,100436,06/02/2014,10197395
INSERTED DETAIL,Resources & Corporate Governance ,Domestic Waste Collection,WWC00,Vehicle Repair and Maintenance,0200,590.07,Dennis Eagle Ltd,100559,06/02/2014,10197322
INSERTED DETAIL,Resources & Corporate Governance,Corporate Property R&M,CPA01,R&M External Contractors,0100,495.00,Dunchurch Services (Rugby) Ltd,100565,06/02/2014,10197349
INSERTED DETAIL,Resources & Corporate Governance,Corporate Property R&M,CPA01,R&M External Contractors,0100,3750.00,I R Security & Safety Ltd,100572,13/02/2014,10197658
INSERTED DETAIL,Capital Program ,Disabled Facilities Grant,REN01,Capital Grants,5014,5314.15,Bob Doyle,100575,27/02/2014,10198235
INSERTED DETAIL,Capital Program ,Disabled Facilities Grant,REN01,Capital Grants,5014,4297.62,Bob Doyle,100575,27/02/2014,10198236
INSERTED DETAIL,Capital Program ,Bathroom Modifications,HIS01,Capital Contract Payments,5000,2495.00,JADA Building & Maintenance Services Ltd,100583,06/02/2014,10197272
INSERTED DETAIL,Capital Program ,Bathroom Modifications,HIS01,Capital Contract Payments,5000,5795.00,JADA Building & Maintenance Services Ltd,100583,13/02/2014,10197718
INSERTED DETAIL,Housing Revenue Account ,Repairs and Maintenance - Void works,UMR09,R&M External Contractors,0100,893.37,Dulux Decorator Centres,100597,20/02/2014,10197615
INSERTED DETAIL,Housing Revenue Account ,Tanser Court AP,AGP17,Gas,0131,1684.42,ESPO,100641,27/02/2014,10197986
INSERTED DETAIL,Housing Revenue Account ,Lesley Souter House AP,AGP16,Gas,0131,1414.31,ESPO,100641,27/02/2014,10197988
INSERTED DETAIL,Housing Revenue Account ,Albert Square AP,AGP20,Gas,0131,1902.34,ESPO,100641,27/02/2014,10197989
INSERTED DETAIL,Resources & Corporate Governance,Corporate Property Central Utilities,CPA02,Gas,0131,3067.11,ESPO,100641,20/02/2014,10197991
INSERTED DETAIL,Resources & Corporate Governance ,WSU Depot,WDP00,Gas,0131,1025.38,ESPO,100641,27/02/2014,10197992
INSERTED DETAIL,Resources & Corporate Governance,Corporate Property Central Utilities,CPA02,Gas,0131,1800.94,ESPO,100641,20/02/2014,10197995
INSERTED DETAIL,Resources & Corporate Governance,Housing Maintenance,WHM00,Agency Staff,0003,440.67,First Personnel Group Plc,100807,13/02/2014,10197687
INSERTED DETAIL,Resources & Corporate Governance,Housing Maintenance,WHM00,Agency Staff,0003,440.67,First Personnel Group Plc,100807,13/02/2014,10197794
INSERTED DETAIL,Resources & Corporate Governance ,Town Hall,OFF00,Materials,0303,750.80,Greenham,100890,27/02/2014,10198120
INSERTED DETAIL,Housing Revenue Account ,Supervision and Management General,MAN00,Movement Incentives,0454,420.00,David Gilkes & Sons Ltd,100913,13/02/2014,10197751
INSERTED DETAIL,Sustainable Environment ,Parks,PKS00,Maintenance of Equipment,0301,532.74,GB Sport & Leisure UK Ltd,100920,06/02/2014,10197331
INSERTED DETAIL,Resources & Corporate Governance ,Council Tax and NNDR Collection,CTX01,Other Agencies,0734,1704.00,Gerald Eve,100929,13/02/2014,10188498
INSERTED DETAIL,Resources & Corporate Governance ,Human Resources Centralised Services,RES31,Recruitment Expenses,0012,469.60,TMP (UK) LTD,100972,06/02/2014,10197135
INSERTED DETAIL,Resources & Corporate Governance ,Human Resources Centralised Services,RES31,Recruitment Expenses,0012,1530.00,TMP (UK) LTD,100972,06/02/2014,10197136
INSERTED DETAIL,Resources & Corporate Governance ,Human Resources Centralised Services,RES31,Recruitment Expenses,0012,899.20,TMP (UK) LTD,100972,06/02/2014,10197413
INSERTED DETAIL,Housing Revenue Account ,Eliot Court AP,AGP25,New Equipment,0300,3428.58,IE Office Equipment Ltd,101114,13/02/2014,10196756
INSERTED DETAIL,Housing Revenue Account ,Control Centre (HRA),CCE00,New Equipment,0300,3190.00,Chubb Systems LTD,101154,20/02/2014,10197901
INSERTED DETAIL,Economy Development & Culture,Planning General/Income,PLN00,Consultancy Costs,0740,2176.40,L G S Ltd,101252,06/02/2014,10197539
INSERTED DETAIL,Capital Program ,Kitchen Modifications,HIK10,Capital Contract Payments,5000,424.84,M & J Engineers Ltd,101278,13/02/2014,10197768
INSERTED DETAIL,Resources & Corporate Governance,Housing Maintenance,WHM00,Materials,0303,497.01,Melbros Ltd,101291,13/02/2014,10193844
INSERTED DETAIL,Resources & Corporate Governance,Housing Maintenance,WHM00,Materials,0303,503.00,Melbros Ltd,101291,13/02/2014,10193847
INSERTED DETAIL,Resources & Corporate Governance,Housing Maintenance,WHM00,Materials,0303,604.00,Melbros Ltd,101291,06/02/2014,10195053
INSERTED DETAIL,Resources & Corporate Governance,Housing Maintenance,WHM00,Materials,0303,2178.35,Melbros Ltd,101291,06/02/2014,10195814
INSERTED DETAIL,Resources & Corporate Governance,Housing Maintenance,WHM00,Materials,0303,2360.00,Melbros Ltd,101291,06/02/2014,10195821
INSERTED DETAIL,Resources & Corporate Governance,Housing Maintenance,WHM00,Materials,0303,447.01,Melbros Ltd,101291,27/02/2014,10196168
INSERTED DETAIL,Resources & Corporate Governance,Housing Maintenance,WHM00,Materials,0303,570.00,Melbros Ltd,101291,27/02/2014,10196169
INSERTED DETAIL,Resources & Corporate Governance,Housing Maintenance,WHM00,Materials,0303,497.01,Melbros Ltd,101291,06/02/2014,10196175
INSERTED DETAIL,Resources & Corporate Governance,Housing Maintenance,WHM00,Materials,0303,791.01,Melbros Ltd,101291,20/02/2014,10196176
INSERTED DETAIL,Resources & Corporate Governance,Housing Maintenance,WHM00,Materials,0303,502.32,Melbros Ltd,101291,13/02/2014,10197460
INSERTED DETAIL,Resources & Corporate Governance,Housing Maintenance,WHM00,Materials,0303,570.00,Melbros Ltd,101291,13/02/2014,10197461
INSERTED DETAIL,Resources & Corporate Governance,Housing Maintenance,WHM00,Materials,0303,588.00,Melbros Ltd,101291,13/02/2014,10197462
INSERTED DETAIL,Resources & Corporate Governance,Housing Maintenance,WHM00,Materials,0303,435.00,Melbros Ltd,101291,20/02/2014,10197468
INSERTED DETAIL,Resources & Corporate Governance,Housing Maintenance,WHM00,Materials,0303,604.00,Melbros Ltd,101291,27/02/2014,10197528
INSERTED DETAIL,Resources & Corporate Governance,Housing Maintenance,WHM00,Materials,0303,570.00,Melbros Ltd,101291,27/02/2014,10197529
INSERTED DETAIL,Resources & Corporate Governance,Housing Maintenance,WHM00,Materials,0303,464.60,Melbros Ltd,101291,27/02/2014,10197530
INSERTED DETAIL,Resources & Corporate Governance,Housing Maintenance,WHM00,Materials,0303,418.00,Melbros Ltd,101291,27/02/2014,10197532
INSERTED DETAIL,Resources & Corporate Governance,Corporate Property R&M,CPA01,R&M External Contractors,0100,499.65,M W D Services Ltd,101293,27/02/2014,10198153
INSERTED DETAIL,Resources & Corporate Governance,Corporate Property R&M,CPA01,R&M External Contractors,0100,737.25,M W D Services Ltd,101293,27/02/2014,10198154
INSERTED DETAIL,Resources & Corporate Governance ,Domestic Waste Collection,WWC00,Vehicle Repair and Maintenance,0200,451.50,Mitchell Powersystems,101332,20/02/2014,10198108
INSERTED DETAIL,Resources & Corporate Governance ,Domestic Waste Collection,WWC00,Vehicle Repair and Maintenance,0200,805.16,Noden Truck Centre Ltd,101368,27/02/2014,10197942
INSERTED DETAIL,Resources & Corporate Governance ,Domestic Waste Collection,WWC00,Vehicle Repair and Maintenance,0200,998.59,Noden Truck Centre Ltd,101368,27/02/2014,10197950
INSERTED DETAIL,Economy Development & Culture,Visitor Centre,VSC00,Events Tickets - Zero Rated,1405,954.01,National Express Ltd,101392,06/02/2014,10197491
INSERTED DETAIL,Capital Program ,Disabled Facilities Grant,REN01,Capital Grants,5014,867.45,Orbit Group Limited,101414,06/02/2014,10197022
INSERTED DETAIL,Sustainable Environment ,Grass Cutting,PKS13,External Contractor & Operator,0742,1468.00,Pailton Parish Council,101419,20/02/2014,10197914
INSERTED DETAIL,Resources & Corporate Governance,Central Business Support Services,CSS15,External Printing,0352,930.00,Polycopy,101428,06/02/2014,10197310
INSERTED DETAIL,Resources & Corporate Governance,Central Business Support Services,CSS15,Stationery Supplies,0350,419.82,Polycopy,101428,20/02/2014,10198030
INSERTED DETAIL,Resources & Corporate Governance,Housing Maintenance,WHM00,Vehicle Running Costs,0201,1540.00,Post Office Ltd,101429,13/02/2014,10197752
INSERTED DETAIL,Resources & Corporate Governance ,Street Cleansing,WSC00,Vehicle Running Costs,0201,220.00,Post Office Ltd,101429,13/02/2014,10197752
INSERTED DETAIL,Resources & Corporate Governance ,Domestic Waste Collection,WWC00,Vehicle Running Costs,0201,650.00,Post Office Ltd,101429,13/02/2014,10197752
INSERTED DETAIL,Sustainable Inclusive Communities,Sewage Disposal Plant,SDP00,R&M External Contractors,0100,520.28,PJT Pumping Services,101438,20/02/2014,10198077
INSERTED DETAIL,Sustainable Environment ,Parks,PKS00,R&M External Contractors,0100,512.52,PJT Pumping Services,101438,20/02/2014,10198078
INSERTED DETAIL,Resources & Corporate Governance ,Grounds Maintenance,WGM00,External Contractor & Operator,0742,5850.00,Post To Post Fencing,101490,06/02/2014,10197314
INSERTED DETAIL,Housing Revenue Account ,Property Maintenance,MAN23,Agency Staff,0003,459.73,Rugby Recruitment Services Ltd,101521,13/02/2014,10197427
INSERTED DETAIL,Housing Revenue Account ,Property Maintenance,MAN23,Agency Staff,0003,487.70,Rugby Recruitment Services Ltd,101521,13/02/2014,10197428
INSERTED DETAIL,Economy Development & Culture,Art Gallery and Museum,AGM00,Postage & Distribution,0370,6.58,Royal Mail,101554,20/02/2014,10197210
INSERTED DETAIL,Economy Development & Culture,Building Control Services,BCS00,Postage & Distribution,0370,0.29,Royal Mail,101554,20/02/2014,10197210
INSERTED DETAIL,Economy Development & Culture,Building Control Services Non-Fee Earning Account,BCS01,Postage & Distribution,0370,0.29,Royal Mail,101554,20/02/2014,10197210
INSERTED DETAIL,Economy Development & Culture,Building Regulation Fee Earning Account,BCS99,Postage & Distribution,0370,5.14,Royal Mail,101554,20/02/2014,10197210
INSERTED DETAIL,Economy Development & Culture,Car Parks General,CPK01,Postage & Distribution,0370,37.03,Royal Mail,101554,20/02/2014,10197210
INSERTED DETAIL,Resources & Corporate Governance,Central Business Support Services,CSS15,Postage & Distribution,0370,280.41,Royal Mail,101554,20/02/2014,10197210
INSERTED DETAIL,Resources & Corporate Governance ,Council Tax and NNDR Collection,CTX01,Postage & Distribution,0370,301.67,Royal Mail,101554,20/02/2014,10197210
INSERTED DETAIL,Economy Development & Culture,Decrim. of Car Parking on street parking,DPE02,Postage & Distribution,0370,148.12,Royal Mail,101554,20/02/2014,10197210
INSERTED DETAIL,Resources & Corporate Governance ,Electoral Registration,ERG00,Postage & Distribution,0370,3.29,Royal Mail,101554,20/02/2014,10197210
INSERTED DETAIL,Sustainable Inclusive Communities,Housing Benefit Administration,HBA00,Postage & Distribution,0370,404.96,Royal Mail,101554,20/02/2014,10197210
INSERTED DETAIL,Housing Revenue Account ,Supervision and Management General,MAN00,Postage & Distribution,0370,81.89,Royal Mail,101554,20/02/2014,10197210
INSERTED DETAIL,Economy Development & Culture,Planning General/Income,PLN00,Postage & Distribution,0370,173.93,Royal Mail,101554,20/02/2014,10197210
INSERTED DETAIL,Economy Development & Culture,Visitor Centre,VSC00,Postage & Distribution,0370,0.94,Royal Mail,101554,20/02/2014,10197210
INSERTED DETAIL,Resources & Corporate Governance ,General Administration,WAD00,Postage & Distribution,0370,9.65,Royal Mail,101554,20/02/2014,10197210
INSERTED DETAIL,Economy Development & Culture,Art Gallery and Museum,AGM00,Postage & Distribution,0370,1.88,Royal Mail,101554,27/02/2014,10197849
INSERTED DETAIL,Economy Development & Culture,Building Control Services,BCS00,Postage & Distribution,0370,1.40,Royal Mail,101554,27/02/2014,10197849
INSERTED DETAIL,Economy Development & Culture,Building Control Services Non-Fee Earning Account,BCS01,Postage & Distribution,0370,1.40,Royal Mail,101554,27/02/2014,10197849
INSERTED DETAIL,Economy Development & Culture,Building Regulation Fee Earning Account,BCS99,Postage & Distribution,0370,25.17,Royal Mail,101554,27/02/2014,10197849
INSERTED DETAIL,Economy Development & Culture,Car Parks General,CPK01,Postage & Distribution,0370,43.27,Royal Mail,101554,27/02/2014,10197849
INSERTED DETAIL,Resources & Corporate Governance,Central Business Support Services,CSS15,Postage & Distribution,0370,430.08,Royal Mail,101554,27/02/2014,10197849
INSERTED DETAIL,Resources & Corporate Governance ,Council Tax and NNDR Collection,CTX01,Postage & Distribution,0370,14.04,Royal Mail,101554,27/02/2014,10197849
INSERTED DETAIL,Economy Development & Culture,Decrim. of Car Parking on street parking,DPE02,Postage & Distribution,0370,173.09,Royal Mail,101554,27/02/2014,10197849
INSERTED DETAIL,Resources & Corporate Governance ,Electoral Registration,ERG00,Postage & Distribution,0370,18.05,Royal Mail,101554,27/02/2014,10197849
INSERTED DETAIL,Sustainable Inclusive Communities,Housing Benefit Administration,HBA00,Postage & Distribution,0370,268.41,Royal Mail,101554,27/02/2014,10197849
INSERTED DETAIL,Housing Revenue Account ,Supervision and Management General,MAN00,Postage & Distribution,0370,288.12,Royal Mail,101554,27/02/2014,10197849
INSERTED DETAIL,Economy Development & Culture,Planning General/Income,PLN00,Postage & Distribution,0370,433.59,Royal Mail,101554,27/02/2014,10197849
INSERTED DETAIL,Resources & Corporate Governance ,General Administration,WAD00,Postage & Distribution,0370,19.53,Royal Mail,101554,27/02/2014,10197849
INSERTED DETAIL,Resources & Corporate Governance,Corporate Property Central Utilities,CPA02,Water Services,0143,2205.68,Severn Trent Water Ltd,101610,06/02/2014,10197238
INSERTED DETAIL,Resources & Corporate Governance,Corporate Property Central Utilities,CPA02,Water Services,0143,661.81,Severn Trent Water Ltd,101610,27/02/2014,10198075
INSERTED DETAIL,Sustainable Inclusive Communities,Woodside Park,TVR00,Water Services,0143,1474.58,Severn Trent Water Ltd,101610,27/02/2014,10198370
INSERTED DETAIL,Housing Revenue Account ,Unplanned Maintenance and Repair,UMR00,R&M External Contractors,0100,1668.00,Steve Diston Contract Flooring,101668,27/02/2014,10198374
INSERTED DETAIL,Resources & Corporate Governance,Corporate Property R&M,CPA01,R&M External Contractors,0100,1038.70,Secom Plc,101671,06/02/2014,10197021
INSERTED DETAIL,Resources & Corporate Governance ,Customer and Information Strategy,CIS10,Subscriptions,0421,890.00,SOCITM Limited,101682,13/02/2014,10197573
INSERTED DETAIL,Housing Revenue Account ,Property Maintenance,MAN23,Professional Subscriptions,0017,375.00,Thomas Telford Ltd,101725,20/02/2014,10197429
INSERTED DETAIL,Resources & Corporate Governance,Housing Maintenance,WHM00,Subscriptions,0421,375.00,Thomas Telford Ltd,101725,20/02/2014,10197429
INSERTED DETAIL,Resources & Corporate Governance,Housing Maintenance,WHM00,Materials,0303,908.46,Travis Perkins Trading Co Ltd,101732,13/02/2014,10196528
INSERTED DETAIL,Resources & Corporate Governance,Housing Maintenance,WHM00,Materials,0303,3521.92,Travis Perkins Trading Co Ltd,101732,20/02/2014,10196705
INSERTED DETAIL,Resources & Corporate Governance,Housing Maintenance,WHM00,Materials,0303,4448.97,Travis Perkins Trading Co Ltd,101732,20/02/2014,10196989
INSERTED DETAIL,Resources & Corporate Governance,Housing Maintenance,WHM00,Materials,0303,825.00,Travis Perkins Trading Co Ltd,101732,27/02/2014,10196991
INSERTED DETAIL,Resources & Corporate Governance ,Street Cleansing,WSC00,Vehicle Running Costs,0201,550.92,HI-Q Motorway,101736,06/02/2014,10197325
INSERTED DETAIL,Resources & Corporate Governance ,Trade Waste Collection,WWC01,Vehicle Running Costs,0201,55.50,HI-Q Motorway,101736,06/02/2014,10197325
INSERTED DETAIL,Resources & Corporate Governance ,Trade Waste Collection,WWC01,Vehicle Running Costs,0201,473.00,HI-Q Motorway,101736,20/02/2014,10197951
INSERTED DETAIL,Resources & Corporate Governance ,Street Cleansing,WSC00,Vehicle Running Costs,0201,136.57,HI-Q Motorway,101736,20/02/2014,10197952
INSERTED DETAIL,Resources & Corporate Governance ,Domestic Waste Collection,WWC00,Vehicle Running Costs,0201,694.91,HI-Q Motorway,101736,20/02/2014,10197952
INSERTED DETAIL,Resources & Corporate Governance ,Trade Waste Collection,WWC01,Vehicle Running Costs,0201,633.00,HI-Q Motorway,101736,20/02/2014,10197952
INSERTED DETAIL,Resources & Corporate Governance ,Domestic Waste Collection,WWC00,Vehicle Running Costs,0201,597.00,HI-Q Motorway,101736,20/02/2014,10198044
INSERTED DETAIL,Resources & Corporate Governance ,Trade Waste Collection,WWC01,Vehicle Running Costs,0201,1025.71,HI-Q Motorway,101736,20/02/2014,10198044
INSERTED DETAIL,Resources & Corporate Governance ,Grounds Maintenance,WGM00,Tools,0304,2020.76,Tudor Environmental,101743,20/02/2014,10197895
INSERTED DETAIL,Resources & Corporate Governance ,Domestic Waste Collection,WWC00,Vehicle Repair and Maintenance,0200,482.87,Terberg Matec Uk,101761,06/02/2014,10197378
INSERTED DETAIL,Resources & Corporate Governance ,Domestic Waste Collection,WWC00,Vehicle Repair and Maintenance,0200,647.67,Terberg Matec Uk,101761,13/02/2014,10197671
INSERTED DETAIL,Housing Revenue Account ,Sheltered Housing,AGP00,Telephone Expenses,0371,322.64,Vodafone Corporate Ltd,101831,13/02/2014,10197197
INSERTED DETAIL,Economy Development & Culture,Building Control Services,BCS00,Telephone Expenses,0371,0.02,Vodafone Corporate Ltd,101831,13/02/2014,10197197
INSERTED DETAIL,Economy Development & Culture,Building Control Services Non-Fee Earning Account,BCS01,Telephone Expenses,0371,0.02,Vodafone Corporate Ltd,101831,13/02/2014,10197197
INSERTED DETAIL,Economy Development & Culture,Building Regulation Fee Earning Account,BCS99,Telephone Expenses,0371,0.71,Vodafone Corporate Ltd,101831,13/02/2014,10197197
INSERTED DETAIL,Housing Revenue Account ,Control Centre (HRA),CCE00,Telephone Expenses,0371,13.77,Vodafone Corporate Ltd,101831,13/02/2014,10197197
INSERTED DETAIL,Resources & Corporate Governance ,Council Tax and NNDR Collection,CTX01,Telephone Expenses,0371,6.81,Vodafone Corporate Ltd,101831,13/02/2014,10197197
INSERTED DETAIL,Sustainable Inclusive Communities,Housing Options Team,HOT00,Telephone Expenses,0371,48.07,Vodafone Corporate Ltd,101831,13/02/2014,10197197
INSERTED DETAIL,Housing Revenue Account ,Supervision and Management General,MAN00,Telephone Expenses,0371,257.24,Vodafone Corporate Ltd,101831,13/02/2014,10197197
INSERTED DETAIL,Housing Revenue Account ,Estate Management,MAN22,Telephone Expenses,0371,54.00,Vodafone Corporate Ltd,101831,13/02/2014,10197197
INSERTED DETAIL,Housing Revenue Account ,Multi-Storey Flats,MSF00,Telephone Expenses,0371,8.04,Vodafone Corporate Ltd,101831,13/02/2014,10197197
INSERTED DETAIL,Economy Development & Culture,Planning General/Income,PLN00,External Legal Costs,0741,13664.50,Wragge & Co.,101856,20/02/2014,10197517
INSERTED DETAIL,Resources & Corporate Governance ,Human Resources Centralised Services,RES31,Training fees,0011,703.20,West Midlands Employers,101880,06/02/2014,10197348
INSERTED DETAIL,CSW Superfast Broadband,CSW Superfast Broadband,RBB00,Capital Contract Payments,5000,1094.37,Warwickshire County Council,101893,06/02/2014,10197284
INSERTED DETAIL,Resources & Corporate Governance ,"Communications, Consultation and Information Team",BTR20,Payments to Other Local Authorities,0710,6000.00,Warwickshire County Council,101893,06/02/2014,10197415
INSERTED DETAIL,Economy Development & Culture,Planning General/Income,PLN00,Consultancy Costs,0740,2530.00,Warwickshire County Council,101893,27/02/2014,10198363
INSERTED DETAIL,Resources & Corporate Governance ,Domestic Waste Collection,WWC00,Vehicle Repair and Maintenance,0200,659.51,Watling JCB Limited,101922,27/02/2014,10198390
INSERTED DETAIL,Capital Program ,Electric to Gas Conversions,HIM04,Capital Contract Payments,5000,10672.76,Adroit Services Ltd,101939,13/02/2014,10197377
INSERTED DETAIL,Housing Revenue Account ,Unplanned Maintenance and Repair,UMR00,R&M External Contractors,0100,1404.61,Adroit Services Ltd,101939,20/02/2014,10197577
INSERTED DETAIL,Housing Revenue Account ,Unplanned Maintenance and Repair,UMR00,R&M External Contractors,0100,1206.02,Adroit Services Ltd,101939,20/02/2014,10197578
INSERTED DETAIL,Capital Program ,Electric to Gas Conversions,HIM04,Capital Contract Payments,5000,9800.00,Adroit Services Ltd,101939,13/02/2014,10197719
INSERTED DETAIL,Housing Revenue Account ,Unplanned Maintenance and Repair,UMR00,R&M External Contractors,0100,1136.93,Adroit Services Ltd,101939,20/02/2014,10198007
INSERTED DETAIL,Capital Program ,Electric to Gas Conversions,HIM04,Capital Contract Payments,5000,864.57,Adroit Services Ltd,101939,20/02/2014,10198007
INSERTED DETAIL,Housing Revenue Account ,Unplanned Maintenance and Repair,UMR00,R&M External Contractors,0100,468.23,Adroit Services Ltd,101939,20/02/2014,10198008
INSERTED DETAIL,Capital Program ,Electric to Gas Conversions,HIM04,Capital Contract Payments,5000,579.74,Adroit Services Ltd,101939,20/02/2014,10198008
INSERTED DETAIL,Housing Revenue Account ,Unplanned Maintenance and Repair,UMR00,R&M External Contractors,0100,869.57,Adroit Services Ltd,101939,20/02/2014,10198009
INSERTED DETAIL,Capital Program ,Electric to Gas Conversions,HIM04,Capital Contract Payments,5000,541.35,Adroit Services Ltd,101939,20/02/2014,10198009
INSERTED DETAIL,Capital Program ,Electric to Gas Conversions,HIM04,Capital Contract Payments,5000,1767.42,Adroit Services Ltd,101939,20/02/2014,10198010
INSERTED DETAIL,Capital Program ,Electric to Gas Conversions,HIM04,Capital Contract Payments,5000,7350.00,Adroit Services Ltd,101939,27/02/2014,10198045
INSERTED DETAIL,Housing Revenue Account ,Unplanned Maintenance and Repair,UMR00,R&M External Contractors,0100,1204.02,Adroit Services Ltd,101939,20/02/2014,10198158
INSERTED DETAIL,Capital Program ,Electric to Gas Conversions,HIM04,Capital Contract Payments,5000,7350.00,Adroit Services Ltd,101939,27/02/2014,10198289
INSERTED DETAIL,Economy Development & Culture,The Benn Hall,BHL00,Publicity & Marketing,0377,419.50,Johnston Publishing Ltd,107468,06/02/2014,10197425
INSERTED DETAIL,Resources & Corporate Governance,Corporate Property R&M,CPA01,R&M External Contractors,0100,4995.00,Ser-Tec Systems Ltd,108074,06/02/2014,10197334
INSERTED DETAIL,Resources & Corporate Governance,Corporate Property R&M,CPA01,R&M External Contractors,0100,523.00,Ser-Tec Systems Ltd,108074,27/02/2014,10198149
INSERTED DETAIL,Resources & Corporate Governance ,General Financial Services,GFS00,External Contractor & Operator,0742,2810.96,Sterling International Brokers Ltd,108141,13/02/2014,10197596
INSERTED DETAIL,Resources & Corporate Governance ,Central Telephone Service,TEL00,Telephone Expenses,0371,1016.56,British Telecommunications PLC,108425,27/02/2014,10198392
INSERTED DETAIL,Capital Program ,Crematorium Project,BUR04,Capital Contract Payments,5000,626161.04,Daventry District Council,108940,20/02/2014,10197764
INSERTED DETAIL,Capital Program ,Crematorium Project,BUR04,Miscellaneous Capital Expenditure,5020,45888.46,Daventry District Council,108940,20/02/2014,10197764
INSERTED DETAIL,Resources & Corporate Governance ,Maintenance of Customer Services Systems,CIS21,Software Maintenance,0374,1447.50,Bottomline Technologies Ltd,109434,06/02/2014,10197236
INSERTED DETAIL,Resources & Corporate Governance ,Garage Internal,WVR01,Materials,0303,21644.00,Watson Petroleum,110361,20/02/2014,10197954
INSERTED DETAIL,Resources & Corporate Governance,Corporate Property R&M,CPA01,R&M External Contractors,0100,930.44,Croxford Electrical Ltd,110451,06/02/2014,10196731
INSERTED DETAIL,Resources & Corporate Governance,Corporate Property R&M,CPA01,R&M External Contractors,0100,1046.48,Croxford Electrical Ltd,110451,06/02/2014,10197335
INSERTED DETAIL,Resources & Corporate Governance,Corporate Property R&M,CPA01,R&M External Contractors,0100,989.49,Croxford Electrical Ltd,110451,06/02/2014,10197336
INSERTED DETAIL,Resources & Corporate Governance,Corporate Property R&M,CPA01,R&M External Contractors,0100,3677.50,Croxford Electrical Ltd,110451,27/02/2014,10198145
INSERTED DETAIL,Resources & Corporate Governance ,Warwickshire On Line Partnership,JCC10,Payments to Other Local Authorities,0710,10323.57,Warwick District Council,111228,06/02/2014,10197304
INSERTED DETAIL,Resources & Corporate Governance ,Warwickshire On Line Partnership,JCC10,Payments to Other Local Authorities,0710,10352.27,Warwick District Council,111228,13/02/2014,10197862
INSERTED DETAIL,Resources & Corporate Governance ,Warwickshire On Line Partnership,JCC10,Payments to Other Local Authorities,0710,8100.00,Warwick District Council,111228,13/02/2014,10197863
INSERTED DETAIL,Resources & Corporate Governance ,Warwickshire On Line Partnership,JCC10,Payments to Other Local Authorities,0710,18626.39,Warwick District Council,111228,13/02/2014,10197866
INSERTED DETAIL,Sustainable Environment ,Cemeteries General,CEM00,New Equipment,0300,800.00,P D Timms,111508,27/02/2014,10198166
INSERTED DETAIL,Resources & Corporate Governance ,Council Tax and NNDR Collection,CTX01,Other,0763,2325.00,Experian Ltd,112302,13/02/2014,10197595
INSERTED DETAIL,Resources & Corporate Governance ,Maintenance of Customer Services Systems,CIS21,Software Maintenance,0374,2750.00,Civica UK Ltd,112724,27/02/2014,10197971
INSERTED DETAIL,Resources & Corporate Governance ,Maintenance of Customer Services Systems,CIS21,Software Maintenance,0374,21180.40,Civica UK Ltd,112724,20/02/2014,10198065
INSERTED DETAIL,Resources & Corporate Governance ,Maintenance of Customer Services Systems,CIS21,Software Maintenance,0374,3284.37,Civica UK Ltd,112724,27/02/2014,10198497
INSERTED DETAIL,Resources & Corporate Governance ,Maintenance of Customer Services Systems,CIS21,Software Maintenance,0374,9650.00,Civica UK Ltd,112724,27/02/2014,10198498
INSERTED DETAIL,Housing Revenue Account ,Unplanned Maintenance and Repair,UMR00,R&M External Contractors,0100,1291.30,Temple Lifts Ltd,114738,13/02/2014,10196361
INSERTED DETAIL,Housing Revenue Account ,Unplanned Maintenance and Repair,UMR00,R&M External Contractors,0100,1291.30,Temple Lifts Ltd,114738,13/02/2014,10197553
INSERTED DETAIL,Sustainable Inclusive Communities,Housing Options Team,HOT00,Rents,0140,500.00,Diamond House Hotel,115070,06/02/2014,10197430
INSERTED DETAIL,Sustainable Inclusive Communities,Housing Options Team,HOT00,Rents,0140,583.33,Diamond House Hotel,115070,27/02/2014,10198017
INSERTED DETAIL,Housing Revenue Account ,Property Maintenance,MAN23,Training fees,0011,1408.00,OSTAS,117097,06/02/2014,10197311
INSERTED DETAIL,Resources & Corporate Governance,Housing Maintenance,WHM00,Contract Hire,0220,432.24,Brandon Tool Hire,118489,27/02/2014,10197790
INSERTED DETAIL,Resources & Corporate Governance,Corporate Property Central Utilities,CPA02,Electricity,0130,-811.87,Southern Electric,118976,20/02/2014,10197732
INSERTED DETAIL,Resources & Corporate Governance ,WSU Depot,WDP00,Electricity,0130,387.40,Southern Electric,118976,20/02/2014,10197732
INSERTED DETAIL,Resources & Corporate Governance,Corporate Property Central Utilities,CPA02,Electricity,0130,8710.28,Southern Electric,118976,20/02/2014,10197997
INSERTED DETAIL,Sustainable Environment,Crematorium,CRM00,Electricity,0130,-800.30,Southern Electric,118976,20/02/2014,10197997
INSERTED DETAIL,Resources & Corporate Governance ,Toilet Cleaning,WBC01,Agency Staff,0003,504.00,G Staff,120173,06/02/2014,10197323
INSERTED DETAIL,Resources & Corporate Governance ,Domestic Waste Collection,WWC00,Agency Staff,0003,186.30,G Staff,120173,06/02/2014,10197323
INSERTED DETAIL,Resources & Corporate Governance ,Toilet Cleaning,WBC01,Agency Staff,0003,748.60,G Staff,120173,13/02/2014,10197685
INSERTED DETAIL,Resources & Corporate Governance ,Domestic Waste Collection,WWC00,Agency Staff,0003,380.25,G Staff,120173,13/02/2014,10197685
INSERTED DETAIL,Resources & Corporate Governance ,Toilet Cleaning,WBC01,Agency Staff,0003,201.60,G Staff,120173,20/02/2014,10198041
INSERTED DETAIL,Resources & Corporate Governance ,Highways,WHG00,Agency Staff,0003,120.06,G Staff,120173,20/02/2014,10198041
INSERTED DETAIL,Resources & Corporate Governance ,Domestic Waste Collection,WWC00,Agency Staff,0003,623.14,G Staff,120173,20/02/2014,10198041
INSERTED DETAIL,Resources & Corporate Governance ,Trade Waste Collection,WWC01,Agency Staff,0003,104.00,G Staff,120173,20/02/2014,10198041
INSERTED DETAIL,Sustainable Inclusive Communities,Housing Options Team,HOT00,Agency Staff,0003,639.00,Venn Group Recruitment Solutions,121594,06/02/2014,10197275
INSERTED DETAIL,Sustainable Inclusive Communities,Housing Options Team,HOT00,Agency Staff,0003,1064.00,Venn Group Recruitment Solutions,121594,06/02/2014,10197276
INSERTED DETAIL,Sustainable Inclusive Communities,Housing Options Team,HOT00,Agency Staff,0003,639.00,Venn Group Recruitment Solutions,121594,20/02/2014,10197635
INSERTED DETAIL,Sustainable Inclusive Communities,Housing Options Team,HOT00,Agency Staff,0003,1071.00,Venn Group Recruitment Solutions,121594,20/02/2014,10197636
INSERTED DETAIL,Sustainable Inclusive Communities,Housing Options Team,HOT00,Agency Staff,0003,666.00,Venn Group Recruitment Solutions,121594,20/02/2014,10197920
INSERTED DETAIL,Sustainable Inclusive Communities,Housing Options Team,HOT00,Agency Staff,0003,1078.00,Venn Group Recruitment Solutions,121594,20/02/2014,10197921
INSERTED DETAIL,Sustainable Inclusive Communities,Housing Options Team,HOT00,Agency Staff,0003,531.00,Venn Group Recruitment Solutions,121594,27/02/2014,10198241
INSERTED DETAIL,Sustainable Inclusive Communities,Housing Options Team,HOT00,Agency Staff,0003,1075.48,Venn Group Recruitment Solutions,121594,27/02/2014,10198242
INSERTED DETAIL,Resources & Corporate Governance ,Maintenance of Customer Services Systems,CIS21,Software Maintenance,0374,2490.00,Northgate Information Solutions UK Ltd,121606,13/02/2014,10197516
INSERTED DETAIL,Resources & Corporate Governance ,Maintenance of Customer Services Systems,CIS21,Software Maintenance,0374,18000.00,Northgate Information Solutions UK Ltd,121606,20/02/2014,10197575
INSERTED DETAIL,Resources & Corporate Governance ,Maintenance of Customer Services Systems,CIS21,Software Maintenance,0374,32572.37,Northgate Information Solutions UK Ltd,121606,13/02/2014,10197590
INSERTED DETAIL,Resources & Corporate Governance ,Maintenance of Customer Services Systems,CIS21,Software Maintenance,0374,-21504.11,Northgate Information Solutions UK Ltd,121606,20/02/2014,10197909
INSERTED DETAIL,Capital Program ,Housing Management System,HCE08,Capital Contract Payments,5000,4250.00,Northgate Information Solutions UK Ltd,121606,20/02/2014,10198097
INSERTED DETAIL,Capital Program ,Housing Management System,HCE08,Capital Contract Payments,5000,3750.00,Northgate Information Solutions UK Ltd,121606,20/02/2014,10198099
INSERTED DETAIL,Capital Program ,Housing Management System,HCE08,Capital Contract Payments,5000,600.00,Northgate Information Solutions UK Ltd,121606,20/02/2014,10198100
INSERTED DETAIL,Housing Revenue Account ,Supervision and Management General,MAN00,Publicity & Marketing,0377,1225.00,Janus Kreative,121748,27/02/2014,10198205
INSERTED DETAIL,Housing Revenue Account ,Maintenance of Open Spaces,MOS00,External Contractor & Operator,0742,1072.16,Brinklow Quarry,122921,13/02/2014,10197641
INSERTED DETAIL,Resources & Corporate Governance ,Highways,WHG00,External Contractor & Operator,0742,124.23,Brinklow Quarry,122921,13/02/2014,10197641
INSERTED DETAIL,Resources & Corporate Governance ,Central Telephone Service,TEL00,Telephone Expenses,0371,1272.68,Cable & Wireless/T/A Vodafone,123224,06/02/2014,10197556
INSERTED DETAIL,Resources & Corporate Governance ,General Administration,WAD00,Subscriptions,0421,1995.00,Keep Britain Tidy,124855,27/02/2014,10196871
INSERTED DETAIL,Resources & Corporate Governance,Corporate Property R&M,CPA01,R&M External Contractors,0100,508.13,Utilitycom Ltd,124856,20/02/2014,10197148
INSERTED DETAIL,Resources & Corporate Governance,Housing Maintenance,WHM00,External Contractor & Operator,0742,592.50,M P Hudson & Son,129334,06/02/2014,10197434
INSERTED DETAIL,Resources & Corporate Governance,Housing Maintenance,WHM00,External Contractor & Operator,0742,577.50,M P Hudson & Son,129334,27/02/2014,10198388
INSERTED DETAIL,Capital Program ,Electric to Gas Conversions,HIM04,R&M External Contractors,0100,1358.40,National Grid Gas plc,130213,20/02/2014,10192936
INSERTED DETAIL,Economy Development & Culture,Car Parks General,CPK01,Cash Collection,0744,1046.68,Jade Security Services Ltd,131711,13/02/2014,10197610
INSERTED DETAIL,Economy Development & Culture,Decrim. of Car Parking on street parking,DPE02,Cash Collection,0744,734.32,Jade Security Services Ltd,131711,13/02/2014,10197611
INSERTED DETAIL,Capital Program ,Disabled Facilities Grant,REN01,Capital Grants,5014,4977.00,D K Builders,131946,27/02/2014,10198046
INSERTED DETAIL,Economy Development & Culture,Car Parks General,CPK01,Maintenance of Equipment,0301,146.40,Servicom (High Tech) Ltd,133001,20/02/2014,10198114
INSERTED DETAIL,Economy Development & Culture,Decrim. of Car Parking on street parking,DPE02,Maintenance of Equipment,0301,585.60,Servicom (High Tech) Ltd,133001,20/02/2014,10198114
INSERTED DETAIL,Resources & Corporate Governance ,Town Hall,OFF00,New Equipment,0300,511.49,Posturite (UK) Ltd,133131,27/02/2014,10198142
INSERTED DETAIL,Economy Development & Culture,Town Centre CCTV and Management,TVM00,Other Agencies,0734,20739.58,Rugby First Ltd - BID,133176,20/02/2014,10197763
INSERTED DETAIL,Resources & Corporate Governance ,Highways,WHG00,Materials,0303,781.91,Breedon Aggregates England Limited,133309,06/02/2014,10197318
INSERTED DETAIL,Sustainable Inclusive Communities,Housing Options Team,HOT00,Agency Staff,0003,1018.31,Community Resourcing,133778,06/02/2014,10197277
INSERTED DETAIL,Sustainable Inclusive Communities,Housing Options Team,HOT00,Agency Staff,0003,850.74,Community Resourcing,133778,20/02/2014,10197598
INSERTED DETAIL,Sustainable Inclusive Communities,Housing Options Team,HOT00,Agency Staff,0003,1044.09,Community Resourcing,133778,20/02/2014,10197919
INSERTED DETAIL,Resources & Corporate Governance,Housing Maintenance,WHM00,External Contractor & Operator,0742,927.00,Homecare Decorating,133884,13/02/2014,10197484
INSERTED DETAIL,Resources & Corporate Governance,Housing Maintenance,WHM00,External Contractor & Operator,0742,619.00,Homecare Decorating,133884,20/02/2014,10197486
INSERTED DETAIL,Resources & Corporate Governance,Corporate Property R&M,CPA01,R&M External Contractors,0100,498.32,Sunfish Services Ltd,133886,06/02/2014,10197240
INSERTED DETAIL,Resources & Corporate Governance,Corporate Property R&M,CPA01,R&M External Contractors,0100,9759.09,Sunfish Services Ltd,133886,13/02/2014,10197405
INSERTED DETAIL,Resources & Corporate Governance,Corporate Property R&M,CPA01,R&M External Contractors,0100,972.93,Sunfish Services Ltd,133886,13/02/2014,10197655
INSERTED DETAIL,Resources & Corporate Governance,Corporate Property R&M,CPA01,R&M External Contractors,0100,628.49,Sunfish Services Ltd,133886,13/02/2014,10197656
INSERTED DETAIL,Resources & Corporate Governance,Corporate Property R&M,CPA01,R&M External Contractors,0100,2162.04,Sunfish Services Ltd,133886,13/02/2014,10197657
INSERTED DETAIL,Resources & Corporate Governance ,Human Resources Centralised Services,RES31,Eye Tests & Glasses Contributions,0015,850.00,Specsavers Optical Superstores,134897,20/02/2014,10197999
INSERTED DETAIL,Housing Revenue Account ,Alfred Green Close AP,AGP01,Electricity,0130,608.65,Southern Electric,135653,13/02/2014,10197832
INSERTED DETAIL,Housing Revenue Account ,John Thwaites Close AP,AGP08,Electricity,0130,269.15,Southern Electric,135653,13/02/2014,10197832
INSERTED DETAIL,Housing Revenue Account ,Stacey Court AP,AGP12,Electricity,0130,195.26,Southern Electric,135653,13/02/2014,10197832
INSERTED DETAIL,Housing Revenue Account ,Tanser Court AP,AGP17,Electricity,0130,1161.12,Southern Electric,135653,13/02/2014,10197832
INSERTED DETAIL,Housing Revenue Account ,Albert Square AP,AGP20,Electricity,0130,-6.42,Southern Electric,135653,13/02/2014,10197832
INSERTED DETAIL,Housing Revenue Account ,Eliot Court AP,AGP25,Electricity,0130,304.96,Southern Electric,135653,13/02/2014,10197832
INSERTED DETAIL,Housing Revenue Account ,Hirst Close AP,AGP33,Electricity,0130,247.40,Southern Electric,135653,13/02/2014,10197832
INSERTED DETAIL,Housing Revenue Account ,Assheton Close AP,AGP36,Electricity,0130,127.11,Southern Electric,135653,13/02/2014,10197832
INSERTED DETAIL,Housing Revenue Account ,Bennett Court/Warwick Road AP,AGP38,Electricity,0130,28.02,Southern Electric,135653,13/02/2014,10197832
INSERTED DETAIL,Housing Revenue Account ,Deepmore Road/Lytham Road AP,AGP42,Electricity,0130,497.00,Southern Electric,135653,13/02/2014,10197832
INSERTED DETAIL,Housing Revenue Account ,Edmondson Close Dunchurch AP,AGP44,Electricity,0130,293.60,Southern Electric,135653,13/02/2014,10197832
INSERTED DETAIL,Housing Revenue Account ,Harold Cox Place AP,AGP51,Electricity,0130,153.16,Southern Electric,135653,13/02/2014,10197832
INSERTED DETAIL,Housing Revenue Account ,Miscellaneous AP,AGP99,Electricity,0130,21.30,Southern Electric,135653,13/02/2014,10197832
INSERTED DETAIL,Housing Revenue Account ,Supervision and Management General,MAN00,Electricity,0130,26.88,Southern Electric,135653,13/02/2014,10197832
INSERTED DETAIL,Sustainable Inclusive Communities,Woodside Park,TVR00,Electricity,0130,4138.13,Southern Electric,135653,13/02/2014,10197832
INSERTED DETAIL,Sustainable Inclusive Communities,Housing Strategy & Enabling,HSE00,Agency Staff,0003,776.74,Morgan Hunt UK Ltd,136143,06/02/2014,10197269
INSERTED DETAIL,Sustainable Inclusive Communities,Housing Strategy & Enabling,HSE00,Agency Staff,0003,836.91,Morgan Hunt UK Ltd,136143,13/02/2014,10197593
INSERTED DETAIL,Sustainable Inclusive Communities,Housing Strategy & Enabling,HSE00,Agency Staff,0003,579.82,Morgan Hunt UK Ltd,136143,20/02/2014,10197923
INSERTED DETAIL,Sustainable Inclusive Communities,Housing Strategy & Enabling,HSE00,Agency Staff,0003,875.20,Morgan Hunt UK Ltd,136143,27/02/2014,10198169
INSERTED DETAIL,Economy Development & Culture,Grants and Subscriptions,LGS00,Grants To Voluntary Organisations,0720,1000.00,Rugby Phoenix Volleyball Club,137296,13/02/2014,10197614
INSERTED DETAIL,Resources & Corporate Governance ,Domestic Waste Collection,WWC00,Vehicle Repair and Maintenance,0200,738.95,Heil Farid European Company Ltd,137390,06/02/2014,10197227
INSERTED DETAIL,Resources & Corporate Governance ,Domestic Waste Collection,WWC00,Vehicle Repair and Maintenance,0200,971.15,Heil Farid European Company Ltd,137390,27/02/2014,10198141
INSERTED DETAIL,Resources & Corporate Governance ,Street Cleansing,WSC00,Materials,0303,495.00,Danline International Ltd,137588,13/02/2014,10197677
INSERTED DETAIL,Resources & Corporate Governance,Central Business Support Services,CSS15,Photocopying,0354,422.00,Stanford Marsh,138178,06/02/2014,10197308
INSERTED DETAIL,Housing Revenue Account ,Asbestos Surveys,UMR05,R&M External Contractors,0100,1395.00,Rider Levett Bucknall UK Ltd,139918,06/02/2014,10197347
INSERTED DETAIL,Housing Revenue Account ,Asbestos Surveys,UMR05,R&M External Contractors,0100,1005.00,Rider Levett Bucknall UK Ltd,139918,13/02/2014,10197579
INSERTED DETAIL,Sustainable Environment ,Parks,PKS00,External Contractor & Operator,0742,2900.00,D J Whitlock Plant Hire,140156,06/02/2014,10197266
INSERTED DETAIL,Sustainable Environment ,Parks,PKS00,External Contractor & Operator,0742,1000.00,D J Whitlock Plant Hire,140156,20/02/2014,10198094
INSERTED DETAIL,Resources & Corporate Governance ,Domestic Waste Collection,WWC00,Vehicle Repair and Maintenance,0200,913.63,Midlands Truck & Van Ltd,140322,27/02/2014,10197894
INSERTED DETAIL,Resources & Corporate Governance ,Domestic Waste Collection,WWC00,Vehicle Repair and Maintenance,0200,56.61,Midlands Truck & Van Ltd,140322,20/02/2014,10197899
INSERTED DETAIL,Resources & Corporate Governance ,Trade Waste Collection,WWC01,Vehicle Repair and Maintenance,0200,428.73,Midlands Truck & Van Ltd,140322,20/02/2014,10197899
INSERTED DETAIL,Resources & Corporate Governance ,Maintenance of Customer Services Systems,CIS21,Software Maintenance,0374,933.00,Midland Software Ltd,140463,06/02/2014,10197414
INSERTED DETAIL,Sustainable Environment ,Cemeteries General,CEM00,External Contractor & Operator,0742,891.00,StoneWall Security Ltd,140775,20/02/2014,10197753
INSERTED DETAIL,Economy Development & Culture,The Benn Hall,BHL00,External Contractor & Operator,0742,690.00,StoneWall Security Ltd,140775,20/02/2014,10197906
INSERTED DETAIL,Sustainable Inclusive Communities,Woodside Park,TVR00,R&M External Contractors,0100,704.55,Quadrant Security Group Limited,141441,13/02/2014,10197887
INSERTED DETAIL,Resources & Corporate Governance ,Customer and Information Strategy,CIS10,Telephone Expenses,0371,880.62,Zen Internet Ltd,141612,20/02/2014,10198125
INSERTED DETAIL,Resources & Corporate Governance ,Council Tax and NNDR Collection,CTX01,Telephone Expenses,0371,21.27,Zen Internet Ltd,141612,20/02/2014,10198125
INSERTED DETAIL,Sustainable Inclusive Communities,Housing Benefit Administration,HBA00,Telephone Expenses,0371,30.64,Zen Internet Ltd,141612,20/02/2014,10198125
INSERTED DETAIL,Sustainable Inclusive Communities,Housing Benefit Administration,HBA00,Training fees,0011,2194.00,Hbinfo Ltd,144002,06/02/2014,10197305
INSERTED DETAIL,Sustainable Environment ,Parks,PKS00,R&M External Contractors,0100,1005.00,Fountains Direct Limited,144391,06/02/2014,10197241
INSERTED DETAIL,Capital Program ,Open Spaces Refurbishment,LEI08,Capital Contract Payments,5000,6776.00,Logic Street & Park Scene,145331,20/02/2014,10198119
INSERTED DETAIL,,User Balance Sheet Cost Centre,BSU,Revenue Section Agreements,9865,1785.00,Logic Street & Park Scene,145331,20/02/2014,10198119
INSERTED DETAIL,Resources & Corporate Governance,Housing Maintenance,WHM00,Agency Staff,0003,2120.67,Blue Arrow Limited,145492,06/02/2014,10195971
INSERTED DETAIL,Resources & Corporate Governance ,Street Cleansing,WSC00,Agency Staff,0003,1439.91,Blue Arrow Limited,145492,06/02/2014,10195971
INSERTED DETAIL,Resources & Corporate Governance ,Domestic Waste Collection,WWC00,Agency Staff,0003,920.20,Blue Arrow Limited,145492,06/02/2014,10195971
INSERTED DETAIL,Resources & Corporate Governance,Housing Maintenance,WHM00,Agency Staff,0003,1522.43,Blue Arrow Limited,145492,06/02/2014,10196192
INSERTED DETAIL,Resources & Corporate Governance ,Street Cleansing,WSC00,Agency Staff,0003,1288.44,Blue Arrow Limited,145492,06/02/2014,10196192
INSERTED DETAIL,Resources & Corporate Governance ,Domestic Waste Collection,WWC00,Agency Staff,0003,962.57,Blue Arrow Limited,145492,06/02/2014,10196192
INSERTED DETAIL,Resources & Corporate Governance,Housing Maintenance,WHM00,Agency Staff,0003,2096.93,Blue Arrow Limited,145492,06/02/2014,10197319
INSERTED DETAIL,Resources & Corporate Governance ,Street Cleansing,WSC00,Agency Staff,0003,735.82,Blue Arrow Limited,145492,06/02/2014,10197319
INSERTED DETAIL,Resources & Corporate Governance ,Domestic Waste Collection,WWC00,Agency Staff,0003,759.31,Blue Arrow Limited,145492,06/02/2014,10197319
INSERTED DETAIL,Resources & Corporate Governance,Housing Maintenance,WHM00,Agency Staff,0003,2039.48,Blue Arrow Limited,145492,13/02/2014,10197793
INSERTED DETAIL,Resources & Corporate Governance ,Street Cleansing,WSC00,Agency Staff,0003,1162.86,Blue Arrow Limited,145492,13/02/2014,10197793
INSERTED DETAIL,Resources & Corporate Governance ,Domestic Waste Collection,WWC00,Agency Staff,0003,754.44,Blue Arrow Limited,145492,13/02/2014,10197793
INSERTED DETAIL,Resources & Corporate Governance,Housing Maintenance,WHM00,Agency Staff,0003,1901.49,Blue Arrow Limited,145492,20/02/2014,10198111
INSERTED DETAIL,Resources & Corporate Governance ,Street Cleansing,WSC00,Agency Staff,0003,817.49,Blue Arrow Limited,145492,20/02/2014,10198111
INSERTED DETAIL,Resources & Corporate Governance ,Domestic Waste Collection,WWC00,Agency Staff,0003,609.67,Blue Arrow Limited,145492,20/02/2014,10198111
INSERTED DETAIL,Economy Development & Culture,Street Furniture,HIG01,External Contractor & Operator,0742,5779.26,Opus International Consultants (uk) Ltd,145813,27/02/2014,10198265
INSERTED DETAIL,Capital Program ,Disabled Facilities Grant,REN01,Capital Grants,5014,7000.00,Inhouse Renovations,145963,20/02/2014,10197603
INSERTED DETAIL,,Balance Sheet,BS,Revenue Grants,9889,8000.00,Positive About Young People,146375,13/02/2014,10197632
INSERTED DETAIL,Resources & Corporate Governance,Housing Maintenance,WHM00,Materials,0303,453.17,Sapphire Glass Merchants,146549,13/02/2014,10194505
INSERTED DETAIL,Resources & Corporate Governance ,Street Cleansing,WSC00,Vehicle Repair and Maintenance,0200,2095.00,RT Sweeper Services Ltd,146604,13/02/2014,10197722
INSERTED DETAIL,Resources & Corporate Governance,Housing Maintenance,WHM00,External Contractor & Operator,0742,2942.00,Mick Brown Plastering,146699,06/02/2014,10196844
INSERTED DETAIL,Resources & Corporate Governance,Housing Maintenance,WHM00,External Contractor & Operator,0742,510.00,Mick Brown Plastering,146699,13/02/2014,10196845
INSERTED DETAIL,Resources & Corporate Governance,Housing Maintenance,WHM00,External Contractor & Operator,0742,784.00,Mick Brown Plastering,146699,06/02/2014,10197296
INSERTED DETAIL,Resources & Corporate Governance ,Trade Waste Collection,WWC01,Agency Staff,0003,467.41,Fresh Recruitment Solutions (FRS) Ltd,146784,13/02/2014,10197674
INSERTED DETAIL,Resources & Corporate Governance ,Trade Waste Collection,WWC01,Agency Staff,0003,467.41,Fresh Recruitment Solutions (FRS) Ltd,146784,20/02/2014,10197957
INSERTED DETAIL,Sustainable Environment,Environmental Protection FPNs,REG20,Subscriptions,0421,2500.00,Mallard Consultancy Ltd,146807,13/02/2014,10197582
INSERTED DETAIL,Resources & Corporate Governance ,Retired Employees,RET00,Additional Pension Payments,0014,11096.71,WCC Pension Fund,146914,13/02/2014,10197867
INSERTED DETAIL,Resources & Corporate Governance ,Human Resources Centralised Services,RES31,Training fees,0011,4750.00,Learning Nexus Ltd,146957,13/02/2014,10197773
INSERTED DETAIL,Economy Development & Culture,Art Gallery and Museum,AGM00,Postage & Distribution,0370,216.87,TNT Post Midlands Ltd,146983,06/02/2014,10196949
INSERTED DETAIL,Economy Development & Culture,Building Control Services,BCS00,Postage & Distribution,0370,0.57,TNT Post Midlands Ltd,146983,06/02/2014,10196949
INSERTED DETAIL,Economy Development & Culture,Building Control Services Non-Fee Earning Account,BCS01,Postage & Distribution,0370,0.57,TNT Post Midlands Ltd,146983,06/02/2014,10196949
INSERTED DETAIL,Economy Development & Culture,Building Regulation Fee Earning Account,BCS99,Postage & Distribution,0370,10.24,TNT Post Midlands Ltd,146983,06/02/2014,10196949
INSERTED DETAIL,Resources & Corporate Governance,Central Business Support Services,CSS15,Postage & Distribution,0370,107.12,TNT Post Midlands Ltd,146983,06/02/2014,10196949
INSERTED DETAIL,Resources & Corporate Governance ,Council Tax and NNDR Collection,CTX01,Postage & Distribution,0370,200.70,TNT Post Midlands Ltd,146983,06/02/2014,10196949
INSERTED DETAIL,Resources & Corporate Governance ,Electoral Registration,ERG00,Postage & Distribution,0370,10.37,TNT Post Midlands Ltd,146983,06/02/2014,10196949
INSERTED DETAIL,Sustainable Inclusive Communities,Housing Benefit Administration,HBA00,Postage & Distribution,0370,138.15,TNT Post Midlands Ltd,146983,06/02/2014,10196949
INSERTED DETAIL,Housing Revenue Account ,Supervision and Management General,MAN00,Postage & Distribution,0370,46.94,TNT Post Midlands Ltd,146983,06/02/2014,10196949
INSERTED DETAIL,Economy Development & Culture,Visitor Centre,VSC00,Postage & Distribution,0370,40.31,TNT Post Midlands Ltd,146983,06/02/2014,10196949
INSERTED DETAIL,Resources & Corporate Governance ,General Administration,WAD00,Postage & Distribution,0370,4.90,TNT Post Midlands Ltd,146983,06/02/2014,10196949
INSERTED DETAIL,Economy Development & Culture,Art Gallery and Museum,AGM00,Postage & Distribution,0370,24.91,TNT Post Midlands Ltd,146983,20/02/2014,10197211
INSERTED DETAIL,Economy Development & Culture,Building Control Services,BCS00,Postage & Distribution,0370,0.62,TNT Post Midlands Ltd,146983,20/02/2014,10197211
INSERTED DETAIL,Economy Development & Culture,Building Control Services Non-Fee Earning Account,BCS01,Postage & Distribution,0370,0.62,TNT Post Midlands Ltd,146983,20/02/2014,10197211
INSERTED DETAIL,Economy Development & Culture,Building Regulation Fee Earning Account,BCS99,Postage & Distribution,0370,11.11,TNT Post Midlands Ltd,146983,20/02/2014,10197211
INSERTED DETAIL,Resources & Corporate Governance,Central Business Support Services,CSS15,Postage & Distribution,0370,72.68,TNT Post Midlands Ltd,146983,20/02/2014,10197211
INSERTED DETAIL,Resources & Corporate Governance ,Council Tax and NNDR Collection,CTX01,Postage & Distribution,0370,231.92,TNT Post Midlands Ltd,146983,20/02/2014,10197211
INSERTED DETAIL,Resources & Corporate Governance ,Electoral Registration,ERG00,Postage & Distribution,0370,4.29,TNT Post Midlands Ltd,146983,20/02/2014,10197211
INSERTED DETAIL,Sustainable Inclusive Communities,Housing Benefit Administration,HBA00,Postage & Distribution,0370,162.43,TNT Post Midlands Ltd,146983,20/02/2014,10197211
INSERTED DETAIL,Housing Revenue Account ,Supervision and Management General,MAN00,Postage & Distribution,0370,33.14,TNT Post Midlands Ltd,146983,20/02/2014,10197211
INSERTED DETAIL,Resources & Corporate Governance ,General Administration,WAD00,Postage & Distribution,0370,8.87,TNT Post Midlands Ltd,146983,20/02/2014,10197211
INSERTED DETAIL,Economy Development & Culture,Building Control Services,BCS00,Postage & Distribution,0370,0.57,TNT Post Midlands Ltd,146983,27/02/2014,10197560
INSERTED DETAIL,Economy Development & Culture,Building Control Services Non-Fee Earning Account,BCS01,Postage & Distribution,0370,0.57,TNT Post Midlands Ltd,146983,27/02/2014,10197560
INSERTED DETAIL,Economy Development & Culture,Building Regulation Fee Earning Account,BCS99,Postage & Distribution,0370,10.29,TNT Post Midlands Ltd,146983,27/02/2014,10197560
INSERTED DETAIL,Resources & Corporate Governance,Central Business Support Services,CSS15,Postage & Distribution,0370,71.09,TNT Post Midlands Ltd,146983,27/02/2014,10197560
INSERTED DETAIL,Resources & Corporate Governance ,Council Tax and NNDR Collection,CTX01,Postage & Distribution,0370,228.59,TNT Post Midlands Ltd,146983,27/02/2014,10197560
INSERTED DETAIL,Resources & Corporate Governance ,Electoral Registration,ERG00,Postage & Distribution,0370,3.63,TNT Post Midlands Ltd,146983,27/02/2014,10197560
INSERTED DETAIL,Sustainable Inclusive Communities,Housing Benefit Administration,HBA00,Postage & Distribution,0370,150.48,TNT Post Midlands Ltd,146983,27/02/2014,10197560
INSERTED DETAIL,Housing Revenue Account ,Supervision and Management General,MAN00,Postage & Distribution,0370,78.42,TNT Post Midlands Ltd,146983,27/02/2014,10197560
INSERTED DETAIL,Resources & Corporate Governance ,General Administration,WAD00,Postage & Distribution,0370,26.09,TNT Post Midlands Ltd,146983,27/02/2014,10197560
INSERTED DETAIL,Economy Development & Culture,Art Gallery and Museum,AGM00,Postage & Distribution,0370,3.52,TNT Post Midlands Ltd,146983,27/02/2014,10197973
INSERTED DETAIL,Economy Development & Culture,Building Control Services,BCS00,Postage & Distribution,0370,0.67,TNT Post Midlands Ltd,146983,27/02/2014,10197973
INSERTED DETAIL,Economy Development & Culture,Building Control Services Non-Fee Earning Account,BCS01,Postage & Distribution,0370,0.67,TNT Post Midlands Ltd,146983,27/02/2014,10197973
INSERTED DETAIL,Economy Development & Culture,Building Regulation Fee Earning Account,BCS99,Postage & Distribution,0370,11.98,TNT Post Midlands Ltd,146983,27/02/2014,10197973
INSERTED DETAIL,Resources & Corporate Governance,Central Business Support Services,CSS15,Postage & Distribution,0370,73.36,TNT Post Midlands Ltd,146983,27/02/2014,10197973
INSERTED DETAIL,Resources & Corporate Governance ,Council Tax and NNDR Collection,CTX01,Postage & Distribution,0370,203.61,TNT Post Midlands Ltd,146983,27/02/2014,10197973
INSERTED DETAIL,Resources & Corporate Governance ,Electoral Registration,ERG00,Postage & Distribution,0370,19.88,TNT Post Midlands Ltd,146983,27/02/2014,10197973
INSERTED DETAIL,Sustainable Inclusive Communities,Housing Benefit Administration,HBA00,Postage & Distribution,0370,105.17,TNT Post Midlands Ltd,146983,27/02/2014,10197973
INSERTED DETAIL,Housing Revenue Account ,Supervision and Management General,MAN00,Postage & Distribution,0370,116.14,TNT Post Midlands Ltd,146983,27/02/2014,10197973
INSERTED DETAIL,Resources & Corporate Governance ,General Administration,WAD00,Postage & Distribution,0370,4.94,TNT Post Midlands Ltd,146983,27/02/2014,10197973
INSERTED DETAIL,Economy Development & Culture,Building Control Services,BCS00,Postage & Distribution,0370,0.41,TNT Post Midlands Ltd,146983,27/02/2014,10198202
INSERTED DETAIL,Economy Development & Culture,Building Control Services Non-Fee Earning Account,BCS01,Postage & Distribution,0370,0.41,TNT Post Midlands Ltd,146983,27/02/2014,10198202
INSERTED DETAIL,Economy Development & Culture,Building Regulation Fee Earning Account,BCS99,Postage & Distribution,0370,7.32,TNT Post Midlands Ltd,146983,27/02/2014,10198202
INSERTED DETAIL,Resources & Corporate Governance,Central Business Support Services,CSS15,Postage & Distribution,0370,80.03,TNT Post Midlands Ltd,146983,27/02/2014,10198202
INSERTED DETAIL,Resources & Corporate Governance ,Council Tax and NNDR Collection,CTX01,Postage & Distribution,0370,159.19,TNT Post Midlands Ltd,146983,27/02/2014,10198202
INSERTED DETAIL,Resources & Corporate Governance ,Borough Elections,ELC00,Postage & Distribution,0370,207.44,TNT Post Midlands Ltd,146983,27/02/2014,10198202
INSERTED DETAIL,Sustainable Inclusive Communities,Housing Benefit Administration,HBA00,Postage & Distribution,0370,141.33,TNT Post Midlands Ltd,146983,27/02/2014,10198202
INSERTED DETAIL,Housing Revenue Account ,Supervision and Management General,MAN00,Postage & Distribution,0370,50.31,TNT Post Midlands Ltd,146983,27/02/2014,10198202
INSERTED DETAIL,Resources & Corporate Governance ,General Administration,WAD00,Postage & Distribution,0370,11.56,TNT Post Midlands Ltd,146983,27/02/2014,10198202
INSERTED DETAIL,Capital Program ,Corporate Property Enhancements,CPE00,Capital Contract Payments,5000,30251.22,General Asphalte Company,147047,06/02/2014,10197201
INSERTED DETAIL,Capital Program ,Kitchen Modifications,HIK10,Capital Contract Payments,5000,37630.00,CLC Contractors Ltd,147076,13/02/2014,10196000
INSERTED DETAIL,Resources & Corporate Governance,Housing Maintenance,WHM00,External Contractor & Operator,0742,2876.89,Intelligent Disabled Solutions Ltd,147081,06/02/2014,10197292
INSERTED DETAIL,Resources & Corporate Governance,Housing Maintenance,WHM00,External Contractor & Operator,0742,1540.00,K A Cooke Limited,147120,13/02/2014,10197437
INSERTED DETAIL,Resources & Corporate Governance,Housing Maintenance,WHM00,External Contractor & Operator,0742,1600.00,K A Cooke Limited,147120,13/02/2014,10197438
INSERTED DETAIL,Resources & Corporate Governance,Housing Maintenance,WHM00,External Contractor & Operator,0742,1860.00,K A Cooke Limited,147120,13/02/2014,10197474
INSERTED DETAIL,Resources & Corporate Governance,Housing Maintenance,WHM00,External Contractor & Operator,0742,1315.00,K A Cooke Limited,147120,13/02/2014,10197811
INSERTED DETAIL,Resources & Corporate Governance,Housing Maintenance,WHM00,External Contractor & Operator,0742,765.00,K A Cooke Limited,147120,20/02/2014,10197842
INSERTED DETAIL,Resources & Corporate Governance,Housing Maintenance,WHM00,External Contractor & Operator,0742,1160.00,K A Cooke Limited,147120,20/02/2014,10197847
INSERTED DETAIL,Resources & Corporate Governance ,Domestic Waste Collection,WWC00,External Contractor & Operator,0742,775.00,James Baxter Haulage Ltd,147159,13/02/2014,10197555
INSERTED DETAIL,Resources & Corporate Governance,Corporate Property R&M,CPA01,R&M External Contractors,0100,418.00,AirTech Controls Ltd,147262,06/02/2014,10197144
INSERTED DETAIL,Resources & Corporate Governance,Corporate Property R&M,CPA01,R&M External Contractors,0100,3086.50,AirTech Controls Ltd,147262,06/02/2014,10197146
INSERTED DETAIL,Resources & Corporate Governance ,Domestic Waste Collection,WWC00,Contract Hire,0220,825.00,Trash UK Limited,147379,20/02/2014,10198093
INSERTED DETAIL,Resources & Corporate Governance,Corporate Property R&M,CPA01,R&M External Contractors,0100,1192.50,Arden Construction Ltd,147430,13/02/2014,10197701
INSERTED DETAIL,Housing Revenue Account ,Unplanned Maintenance and Repair,UMR00,R&M External Contractors,0100,429.90,Howard Ward Associates LLP,147433,06/02/2014,10197496
INSERTED DETAIL,Capital Program ,Kitchen Modifications,HIK10,Capital Contract Payments,5000,1797.47,Rixonway Kitchens Ltd,147446,20/02/2014,10197854
INSERTED DETAIL,Capital Program ,Kitchen Modifications,HIK10,Capital Contract Payments,5000,11533.68,Rixonway Kitchens Ltd,147446,20/02/2014,10197855
INSERTED DETAIL,Resources & Corporate Governance,Housing Maintenance,WHM00,External Contractor & Operator,0742,575.00,Longfield Tree & Hedge Care,147529,20/02/2014,10196735
INSERTED DETAIL,Resources & Corporate Governance,Housing Maintenance,WHM00,External Contractor & Operator,0742,1100.00,Longfield Tree & Hedge Care,147529,20/02/2014,10197228
INSERTED DETAIL,Resources & Corporate Governance ,Grounds Maintenance,WGM00,Vehicle Repair and Maintenance,0200,1043.74,Tallis Amos Group Limited,147758,27/02/2014,10197955
INSERTED DETAIL,Sustainable Environment ,Parks,PKS00,External Contractor & Operator,0742,534.55,PRS For Music,147770,20/02/2014,10198113
INSERTED DETAIL,Resources & Corporate Governance ,General Financial Services,GFS00,External Contractor & Operator,0742,4800.00,Tradition (UK) Ltd,147842,13/02/2014,10197749
INSERTED DETAIL,Resources & Corporate Governance,Housing Maintenance,WHM00,External Contractor & Operator,0742,506.40,Coventry Garage Doors,147883,06/02/2014,10197132
INSERTED DETAIL,Resources & Corporate Governance,Housing Maintenance,WHM00,External Contractor & Operator,0742,506.40,Coventry Garage Doors,147883,20/02/2014,10197231
INSERTED DETAIL,Capital Program ,Queen's Diamond Jubilee Leisure Centre Project,LEI03,Capital Contract Payments,5000,25117.50,Shepherd Construction Ltd,148014,20/02/2014,10198068
INSERTED DETAIL,Resources & Corporate Governance,Housing Maintenance,WHM00,External Contractor & Operator,0742,592.50,Dean Hudson,148035,06/02/2014,10197433
INSERTED DETAIL,Resources & Corporate Governance,Housing Maintenance,WHM00,External Contractor & Operator,0742,592.50,Dean Hudson,148035,13/02/2014,10197804
INSERTED DETAIL,Resources & Corporate Governance,Housing Maintenance,WHM00,External Contractor & Operator,0742,562.50,Dean Hudson,148035,27/02/2014,10198389
INSERTED DETAIL,Housing Revenue Account ,Unplanned Maintenance and Repair,UMR00,R&M External Contractors,0100,429.68,Western Power Distribution,148103,13/02/2014,10197744
INSERTED DETAIL,Capital Program ,Crematorium Project,BUR04,IT Capital Expenditure,5025,2410.99,Probrand Limited,148276,20/02/2014,10197858
INSERTED DETAIL,Sustainable Inclusive Communities,Sewage Disposal Plant,SDP00,R&M External Contractors,0100,1380.00,Suck'cess,148285,27/02/2014,10197356
INSERTED DETAIL,Sustainable Inclusive Communities,Woodside Park,TVR00,Development Activities,0450,1100.00,"Gotch, Saunders & Surridge LLP , t/a GSS Architecture",148432,06/02/2014,10197404
INSERTED DETAIL,Sustainable Environment,Regulatory Services,REG00,Subscriptions,0421,1230.00,Ricardo-AEA Ltd,148607,13/02/2014,10197729
INSERTED DETAIL,Capital Program ,Private Sector Renovation Loans,REN00,Capital Contract Payments,5000,3186.00,Armour,148726,13/02/2014,10197504
INSERTED DETAIL,Capital Program ,Private Sector Renovation Loans,REN00,Capital Contract Payments,5000,1450.00,Armour,148726,20/02/2014,10197735
INSERTED DETAIL,Resources & Corporate Governance,Corporate Property R&M,CPA01,R&M External Contractors,0100,1068.65,ASG Stage Products Ltd,148857,27/02/2014,10198135
INSERTED DETAIL,Housing Revenue Account ,Gas Heating Systems,UMR01,R&M External Contractors,0100,26765.00,Robert Heath Heating Ltd,148858,13/02/2014,10197561
INSERTED DETAIL,Housing Revenue Account ,Gas Heating Systems,UMR01,R&M External Contractors,0100,866.92,Robert Heath Heating Ltd,148858,13/02/2014,10197562
INSERTED DETAIL,Capital Program ,Queen's Diamond Jubilee Leisure Centre Project,LEI03,Capital Contract Payments,5000,-1263.89,Portakabin Ltd,148919,20/02/2014,10191934
INSERTED DETAIL,Capital Program ,Queen's Diamond Jubilee Leisure Centre Project,LEI03,Capital Contract Payments,5000,1187.33,Portakabin Ltd,148919,20/02/2014,10197019
INSERTED DETAIL,Resources & Corporate Governance,Central Business Support Services,CSS15,Photocopying,0354,3119.86,Xerox Finance Ltd,148940,27/02/2014,10198371
INSERTED DETAIL,Resources & Corporate Governance,Central Business Support Services,CSS15,Photocopying,0354,1386.69,Xerox Finance Ltd,148940,27/02/2014,10198451
INSERTED DETAIL,Capital Program ,Electric to Gas Conversions,HIM04,Capital Contract Payments,5000,600.00,Capita Property & Infrastructure Ltd,148946,06/02/2014,10197515
INSERTED DETAIL,Economy Development & Culture,The Benn Hall,BHL00,Purchases for Resale,0305,1309.72,Matthew Clark Wholesale Ltd,148975,13/02/2014,10197659
INSERTED DETAIL,Economy Development & Culture,The Benn Hall,BHL00,Purchases for Resale,0305,1614.44,Matthew Clark Wholesale Ltd,148975,20/02/2014,10197929
INSERTED DETAIL,Resources & Corporate Governance,Housing Maintenance,WHM00,External Contractor & Operator,0742,526.00,PJR Services,149062,06/02/2014,10197477
INSERTED DETAIL,Resources & Corporate Governance,Housing Maintenance,WHM00,External Contractor & Operator,0742,526.00,PJR Services,149062,13/02/2014,10197801
INSERTED DETAIL,Resources & Corporate Governance,Housing Maintenance,WHM00,External Contractor & Operator,0742,526.00,PJR Services,149062,20/02/2014,10198054
INSERTED DETAIL,Resources & Corporate Governance,Housing Maintenance,WHM00,External Contractor & Operator,0742,526.00,PJR Services,149062,27/02/2014,10198251
INSERTED DETAIL,Resources & Corporate Governance,Corporate Property R&M,CPA01,R&M External Contractors,0100,1100.00,Kier Construction Ltd T/A Kier Construction Central,149148,20/02/2014,10198026
INSERTED DETAIL,Resources & Corporate Governance ,Town Hall,OFF00,Contract Cleaning,0170,4195.83,Superclean Services Wothorpe,149153,06/02/2014,10197224
INSERTED DETAIL,Resources & Corporate Governance ,WSU Depot,WDP00,Contract Cleaning,0170,395.83,Superclean Services Wothorpe,149153,06/02/2014,10197224
INSERTED DETAIL,Resources & Corporate Governance ,Grounds Maintenance,WGM00,Contract Cleaning,0170,200.00,Superclean Services Wothorpe,149153,06/02/2014,10197224
INSERTED DETAIL,Housing Revenue Account ,Sheltered Housing,AGP00,Contract Cleaning,0170,11850.58,Superclean Services Wothorpe,149153,06/02/2014,10197226
INSERTED DETAIL,Sustainable Inclusive Communities,Housing Options Team,HOT00,Contract Cleaning,0170,112.51,Superclean Services Wothorpe,149153,06/02/2014,10197226
INSERTED DETAIL,Housing Revenue Account ,Estate Management,MAN22,Contract Cleaning,0170,2552.47,Superclean Services Wothorpe,149153,06/02/2014,10197226
INSERTED DETAIL,Housing Revenue Account ,Multi-Storey Flats,MSF00,Contract Cleaning,0170,1434.45,Superclean Services Wothorpe,149153,06/02/2014,10197226
INSERTED DETAIL,Resources & Corporate Governance ,Town Hall,OFF00,Contract Cleaning,0170,4195.83,Superclean Services Wothorpe,149153,13/02/2014,10197600
INSERTED DETAIL,Sustainable Environment ,Parks,PKS00,Contract Cleaning,0170,200.00,Superclean Services Wothorpe,149153,13/02/2014,10197600
INSERTED DETAIL,Resources & Corporate Governance ,WSU Depot,WDP00,Contract Cleaning,0170,395.83,Superclean Services Wothorpe,149153,13/02/2014,10197600
INSERTED DETAIL,Housing Revenue Account ,Sheltered Housing,AGP00,Contract Cleaning,0170,11850.58,Superclean Services Wothorpe,149153,20/02/2014,10197740
INSERTED DETAIL,Sustainable Inclusive Communities,Housing Options Team,HOT00,Contract Cleaning,0170,112.51,Superclean Services Wothorpe,149153,20/02/2014,10197740
INSERTED DETAIL,Housing Revenue Account ,Estate Management,MAN22,Contract Cleaning,0170,2552.47,Superclean Services Wothorpe,149153,20/02/2014,10197740
INSERTED DETAIL,Housing Revenue Account ,Multi-Storey Flats,MSF00,Contract Cleaning,0170,1434.45,Superclean Services Wothorpe,149153,20/02/2014,10197740
INSERTED DETAIL,Economy Development & Culture,Planning General/Income,PLN00,External Legal Costs,0741,450.00,Mr Jonathan Salmon,149244,27/02/2014,10198240
INSERTED DETAIL,Capital Program ,Pettiver Crescent,PCH00,Capital Contract Payments,5000,220553.00,Wates Construction Ltd,149267,13/02/2014,10197592
INSERTED DETAIL,Resources & Corporate Governance,Housing Maintenance,WHM00,External Contractor & Operator,0742,1243.98,CSC Forecourt Services Ltd,149405,20/02/2014,10197739
INSERTED DETAIL,Resources & Corporate Governance,Corporate Property R&M,CPA01,R&M External Contractors,0100,1195.00,Mr Stephen Young,149467,06/02/2014,10197223
INSERTED DETAIL,Sustainable Environment,Regulatory Services,REG00,External Contractor & Operator,0742,1556.78,Les Jackson t/a LJL,149468,13/02/2014,10197699
INSERTED DETAIL,Sustainable Environment ,Parks,PKS00,External Contractor & Operator,0742,1250.00,Lest We Forget Ltd,149519,13/02/2014,10197313
INSERTED DETAIL,Sustainable Environment ,Cemeteries General,CEM00,New Equipment,0300,5150.00,Omega Supplies UK Limited,149520,13/02/2014,10197324
INSERTED DETAIL,Sustainable Environment ,Cemeteries General,CEM00,R&M External Contractors,0100,4300.00,Omega Supplies UK Limited,149520,27/02/2014,10197932
INSERTED DETAIL,Economy Development & Culture,Economic Development General,ECD00,Development Activities,0450,15000.00,Coventry & Warwickshire Local Enterprise Partnership Ltd,149525,13/02/2014,10197179
INSERTED DETAIL,Economy Development & Culture,Economic Development General,ECD00,Development Activities,0450,17519.00,Coventry & Warwickshire Local Enterprise Partnership Ltd,149525,20/02/2014,10198101
INSERTED DETAIL,Sustainable Inclusive Communities,Housing Benefit Administration,HBA00,Training fees,0011,750.00,Andy Thurman Ltd,149532,06/02/2014,10197306
INSERTED DETAIL,Economy Development & Culture,Queens Diamond Jubilee Centre,QDJ00,Other Miscellaneous Expenses,0444,676.39,Fleet Claims Administration Ltd,149533,06/02/2014,10197278
INSERTED DETAIL,Sustainable Environment ,Cemeteries General,CEM00,External Contractor & Operator,0742,800.00,F D Welters Ltd,149538,13/02/2014,10197720
INSERTED DETAIL,,Balance Sheet,BS,Car Loan Scheme,9261,5525.00,REDACTED PERSONAL DATA,149551,06/02/2014,10197440
INSERTED DETAIL,,Balance Sheet,BS,Car Loan Scheme,9261,1200.00,BerryBaleReeve Ltd,149555,06/02/2014,10197441
detail,Housing Revenue Account ,Supervision and Management General,MAN00,Movement Incentives,0454,500.00,REDACTED PERSONAL DATA,149567,13/02/2014,10197762
,Resources & Corporate Governance ,General Financial Services,GFS00,Payment Card Costs,0444,1140.36,Capita - Dec Charges,,19/02/2014,30621
,Resources & Corporate Governance ,General Financial Services,GFS00,Payment Card Costs,0444,1145.36,Capita - Jan Charges,,25/02/2014,30707
